[Event "Titled Tuesday Blitz February 21 Late 2023"]
[White "Kleiman, Jake"]
[Black "Buscar, Michael"]
[WhiteFideId "2020041"]
[BlackFideId "2603616"]
[WhiteElo "2399"]
[BlackElo "2041"]
[Result "1-0"]
[Round "04"]
[TimeControl "180+2"]
[Date "2023.02.21"]
[WhiteClock "0:00:09"]
[BlackClock "0:00:10"]

1. h4 {[%clk 0:02:56]}  h5 {[%clk 0:02:57]} 2. e4 {[%clk 0:02:55]}  e5 {[%clk 0:02:57]} 3. Nf3 {[%clk 0:02:55]}  Nf6 {[%clk 0:02:56]} 4. Nxe5 {[%clk 0:02:32]}  d6 {[%clk 0:02:56]} 5. Nf3 {[%clk 0:02:29]}  Nxe4 {[%clk 0:02:56]} 6. d3 {[%clk 0:02:28]}  Nf6 {[%clk 0:02:55]} 7. d4 {[%clk 0:02:28]}  Bg4 {[%clk 0:02:54]} 8. Bg5 {[%clk 0:02:28]}  d5 {[%clk 0:02:49]} 9. Nbd2 {[%clk 0:02:27]}  Nbd7 {[%clk 0:02:49]} 10. c3 {[%clk 0:02:24]}  c6 {[%clk 0:02:43]} 11. Qb3 {[%clk 0:02:17]}  Qb6 {[%clk 0:02:42]} 12. Qc2 {[%clk 0:02:14]}  O-O-O {[%clk 0:02:39]} 13. O-O-O {[%clk 0:02:14]}  Bd6 {[%clk 0:02:38]} 14. Bd3 {[%clk 0:02:14]}  Kb8 {[%clk 0:02:37]} 15. Rhe1 {[%clk 0:02:13]}  Rde8 {[%clk 0:02:34]} 16. Rxe8+ {[%clk 0:02:08]}  Rxe8 {[%clk 0:02:31]} 17. Re1 {[%clk 0:02:08]}  Qd8 {[%clk 0:02:09]} 18. Re3 {[%clk 0:01:58]}  Re7 {[%clk 0:01:58]} 19. Qd1 {[%clk 0:01:55]}  Qe8 {[%clk 0:01:58]} 20. Qe1 {[%clk 0:01:44]}  Rxe3 {[%clk 0:01:53]} 21. Qxe3 {[%clk 0:01:39]}  Qxe3 {[%clk 0:01:52]} 22. fxe3 {[%clk 0:01:40]}  Kc7 {[%clk 0:01:44]} 23. Bf4 {[%clk 0:01:36]}  Bxf4 {[%clk 0:01:20]} 24. exf4 {[%clk 0:01:36]}  Ne8 {[%clk 0:01:21]} 25. Kd1 {[%clk 0:01:19]}  Nd6 {[%clk 0:01:19]} 26. Ke2 {[%clk 0:01:18]}  Bf5 {[%clk 0:01:04]} 27. Nf1 {[%clk 0:01:09]}  Bxd3+ {[%clk 0:00:54]} 28. Kxd3 {[%clk 0:01:10]}  Nf6 {[%clk 0:00:54]} 29. Ne3 {[%clk 0:01:05]}  Nfe4 {[%clk 0:00:52]} 30. Ng5 {[%clk 0:00:58]}  Kd7 {[%clk 0:00:36]} 31. b3 {[%clk 0:00:50]}  Ke7 {[%clk 0:00:31]} 32. c4 {[%clk 0:00:48]}  Nxg5 {[%clk 0:00:26]} 33. hxg5 {[%clk 0:00:47]}  Ke6 {[%clk 0:00:20]} 34. a4 {[%clk 0:00:34]}  Nf5 {[%clk 0:00:20]} 35. Nd1 {[%clk 0:00:30]}  Nh4 {[%clk 0:00:18]} 36. Ne3 {[%clk 0:00:30]}  Nf5 {[%clk 0:00:18]} 37. Nc2 {[%clk 0:00:23]}  Nh4 {[%clk 0:00:18]} 38. Ne1 {[%clk 0:00:24]}  Nf5 {[%clk 0:00:18]} 39. Nf3 {[%clk 0:00:24]}  f6 {[%clk 0:00:17]} 40. gxf6 {[%clk 0:00:22]}  gxf6 {[%clk 0:00:17]} 41. a5 {[%clk 0:00:22]}  a6 {[%clk 0:00:16]} 42. Ke2 {[%clk 0:00:17]}  dxc4 {[%clk 0:00:13]} 43. bxc4 {[%clk 0:00:17]}  Nd6 {[%clk 0:00:14]} 44. Kd3 {[%clk 0:00:16]}  Nf5 {[%clk 0:00:14]} 45. Kc3 {[%clk 0:00:16]}  Ng3 {[%clk 0:00:14]} 46. Kd3 {[%clk 0:00:13]}  Nf5 {[%clk 0:00:14]} 47. Ne1 {[%clk 0:00:12]}  Nh4 {[%clk 0:00:14]} 48. Ke4 {[%clk 0:00:11]}  Kd6 {[%clk 0:00:11]} 49. d5 {[%clk 0:00:10]}  Kc5 {[%clk 0:00:10]} 50. g3 {[%clk 0:00:09]}  Ng6 {[%clk 0:00:10]} 51. Nd3+ {[%clk 0:00:10]}  Kd6 {[%clk 0:00:09]} 52. c5+ {[%clk 0:00:10]}  Kd7 {[%clk 0:00:10]} 53. d6 {[%clk 0:00:11]}  h4 {[%clk 0:00:09]} 54. gxh4 {[%clk 0:00:10]}  Nxh4 {[%clk 0:00:10]} 55. Nf2 {[%clk 0:00:10]}  f5+ {[%clk 0:00:08]} 56. Ke5 {[%clk 0:00:09]}  Nf3+ {[%clk 0:00:08]} 57. Kxf5 {[%clk 0:00:09]}  Nd4+ {[%clk 0:00:08]} 58. Ke4 {[%clk 0:00:08]}  Nb3 {[%clk 0:00:09]} 59. Nd3 {[%clk 0:00:08]}  Nxa5 {[%clk 0:00:10]} 60. Ne5+ {[%clk 0:00:09]}  Ke6 {[%clk 0:00:10]} 61. f5+ {[%clk 0:00:09]}  Kf6 {[%clk 0:00:10]} 62. d7 {[%clk 0:00:09]} 1-0


[Site "https://www.chess.com"]

[Event "Titled Tuesday Blitz February 21 Late 2023"]
[White "Becerra, Juan David"]
[Black "Ward, Ieuan C"]
[WhiteFideId "4404998"]
[BlackFideId "406627"]
[WhiteElo "2382"]
[BlackElo "2028"]
[Result "1-0"]
[Round "04"]
[TimeControl "180+2"]
[Date "2023.02.21"]
[WhiteClock "0:01:28"]
[BlackClock "0:00:32"]

1. d4 {[%clk 0:02:56]}  Nf6 {[%clk 0:02:58]} 2. c4 {[%clk 0:02:56]}  e6 {[%clk 0:02:57]} 3. Nc3 {[%clk 0:02:55]}  Bb4 {[%clk 0:02:56]} 4. a3 {[%clk 0:02:55]}  Bxc3+ {[%clk 0:02:55]} 5. bxc3 {[%clk 0:02:56]}  d5 {[%clk 0:02:54]} 6. cxd5 {[%clk 0:02:42]}  exd5 {[%clk 0:02:53]} 7. Bg5 {[%clk 0:02:42]}  O-O {[%clk 0:02:49]} 8. e3 {[%clk 0:02:40]}  Bf5 {[%clk 0:02:49]} 9. Bd3 {[%clk 0:02:34]}  Bxd3 {[%clk 0:02:47]} 10. Qxd3 {[%clk 0:02:35]}  Nbd7 {[%clk 0:02:46]} 11. Ne2 {[%clk 0:02:35]}  h6 {[%clk 0:02:45]} 12. Bh4 {[%clk 0:02:34]}  c6 {[%clk 0:02:42]} 13. O-O {[%clk 0:02:34]}  b5 {[%clk 0:02:38]} 14. f3 {[%clk 0:02:30]}  Qe7 {[%clk 0:02:25]} 15. Ng3 {[%clk 0:02:26]}  Qe6 {[%clk 0:01:59]} 16. Nf5 {[%clk 0:02:24]}  Rfe8 {[%clk 0:01:47]} 17. Rae1 {[%clk 0:02:22]}  c5 {[%clk 0:01:23]} 18. e4 {[%clk 0:02:20]}  dxe4 {[%clk 0:01:18]} 19. fxe4 {[%clk 0:02:18]}  Nxe4 {[%clk 0:01:16]} 20. Ne7+ {[%clk 0:02:16]}  Rxe7 {[%clk 0:01:08]} 21. Bxe7 {[%clk 0:02:17]}  Qxe7 {[%clk 0:01:02]} 22. Rxe4 {[%clk 0:02:12]}  Qd6 {[%clk 0:01:00]} 23. Qf3 {[%clk 0:02:03]}  Rf8 {[%clk 0:00:57]} 24. Rg4 {[%clk 0:01:58]}  cxd4 {[%clk 0:00:54]} 25. cxd4 {[%clk 0:01:59]}  Nb6 {[%clk 0:00:50]} 26. Qf5 {[%clk 0:01:37]}  a6 {[%clk 0:00:47]} 27. Qf6 {[%clk 0:01:37]}  Qxf6 {[%clk 0:00:37]} 28. Rxf6 {[%clk 0:01:38]}  Rb8 {[%clk 0:00:37]} 29. Rxh6 {[%clk 0:01:32]}  a5 {[%clk 0:00:32]} 30. Rh3 {[%clk 0:01:31]}  b4 {[%clk 0:00:31]} 31. axb4 {[%clk 0:01:32]}  axb4 {[%clk 0:00:31]} 32. Rb3 {[%clk 0:01:32]}  Nc4 {[%clk 0:00:32]} 33. d5 {[%clk 0:01:28]} 1-0


[Site "https://www.chess.com"]

[Event "Titled Tuesday Blitz February 21 Late 2023"]
[White "Buchenau, Frank"]
[Black "Herbst, Richard"]
[WhiteFideId "4604350"]
[BlackFideId "2041251"]
[WhiteElo "2222"]
[BlackElo "2120"]
[Result "1-0"]
[Round "04"]
[TimeControl "180+2"]
[Date "2023.02.21"]
[WhiteClock "0:01:23"]
[BlackClock "0:01:35"]

1. e4 {[%clk 0:03:00]}  c5 {[%clk 0:02:59]} 2. Nf3 {[%clk 0:03:00]}  Nc6 {[%clk 0:02:59]} 3. Bb5 {[%clk 0:03:00]}  g6 {[%clk 0:02:52]} 4. Bxc6 {[%clk 0:03:00]}  dxc6 {[%clk 0:02:50]} 5. d3 {[%clk 0:03:00]}  Bg7 {[%clk 0:02:49]} 6. O-O {[%clk 0:03:00]}  Bg4 {[%clk 0:02:48]} 7. Nbd2 {[%clk 0:02:58]}  Nf6 {[%clk 0:02:48]} 8. h3 {[%clk 0:02:58]}  Bxf3 {[%clk 0:02:47]} 9. Nxf3 {[%clk 0:02:57]}  Nd7 {[%clk 0:02:47]} 10. c3 {[%clk 0:02:50]}  O-O {[%clk 0:02:40]} 11. Be3 {[%clk 0:02:36]}  Qc7 {[%clk 0:02:30]} 12. Qb3 {[%clk 0:02:31]}  b6 {[%clk 0:02:27]} 13. Rfd1 {[%clk 0:02:25]}  Rad8 {[%clk 0:02:24]} 14. d4 {[%clk 0:02:22]}  cxd4 {[%clk 0:02:24]} 15. cxd4 {[%clk 0:02:22]}  c5 {[%clk 0:02:17]} 16. Rac1 {[%clk 0:02:20]}  Rc8 {[%clk 0:02:16]} 17. a4 {[%clk 0:02:04]}  Rfe8 {[%clk 0:02:00]} 18. d5 {[%clk 0:02:01]}  h6 {[%clk 0:01:45]} 19. Qd3 {[%clk 0:01:52]}  Kh7 {[%clk 0:01:45]} 20. b4 {[%clk 0:01:47]}  Qd6 {[%clk 0:01:44]} 21. b5 {[%clk 0:01:44]}  Ne5 {[%clk 0:01:40]} 22. Nxe5 {[%clk 0:01:43]}  Bxe5 {[%clk 0:01:41]} 23. Qd2 {[%clk 0:01:39]}  h5 {[%clk 0:01:39]} 24. f4 {[%clk 0:01:38]}  Bg7 {[%clk 0:01:35]} 25. e5 {[%clk 0:01:38]}  Qd7 {[%clk 0:01:35]} 26. Qe2 {[%clk 0:01:28]}  Qf5 {[%clk 0:01:34]} 27. g4 {[%clk 0:01:23]}  hxg4 {[%clk 0:01:34]} 28. hxg4 {[%clk 0:01:23]}  Qe4 {[%clk 0:01:35]} 29. Rc4 {[%clk 0:01:23]} 1-0


[Site "https://www.chess.com"]

[Event "Titled Tuesday Blitz February 21 Late 2023"]
[White "Kohler, Aran"]
[Black "Poeta, Caio Medeiros"]
[WhiteFideId "1002856"]
[BlackFideId "2142660"]
[WhiteElo "2010"]
[BlackElo "2088"]
[Result "0-1"]
[Round "04"]
[TimeControl "180+2"]
[Date "2023.02.21"]
[WhiteClock "0:00:24"]
[BlackClock "0:01:57"]

1. Nf3 {[%clk 0:03:00]}  Nf6 {[%clk 0:02:59]} 2. d4 {[%clk 0:03:00]}  g6 {[%clk 0:02:58]} 3. Bg5 {[%clk 0:03:00]}  Bg7 {[%clk 0:02:58]} 4. Nbd2 {[%clk 0:03:00]}  O-O {[%clk 0:02:57]} 5. e3 {[%clk 0:03:00]}  c5 {[%clk 0:02:57]} 6. c3 {[%clk 0:03:00]}  d5 {[%clk 0:02:54]} 7. Bd3 {[%clk 0:02:59]}  b6 {[%clk 0:02:52]} 8. Qe2 {[%clk 0:02:56]}  Bb7 {[%clk 0:02:51]} 9. h4 {[%clk 0:02:55]}  h5 {[%clk 0:02:50]} 10. Ne5 {[%clk 0:02:52]}  c4 {[%clk 0:02:48]} 11. Bc2 {[%clk 0:02:52]}  Nbd7 {[%clk 0:02:48]} 12. f4 {[%clk 0:02:44]}  Nxe5 {[%clk 0:02:45]} 13. fxe5 {[%clk 0:02:36]}  Ng4 {[%clk 0:02:45]} 14. O-O-O {[%clk 0:01:51]}  b5 {[%clk 0:02:44]} 15. Rdf1 {[%clk 0:01:45]}  Qd7 {[%clk 0:02:42]} 16. e4 {[%clk 0:01:43]}  e6 {[%clk 0:02:39]} 17. exd5 {[%clk 0:01:39]}  exd5 {[%clk 0:02:36]} 18. Rh3 {[%clk 0:01:33]}  a5 {[%clk 0:02:35]} 19. Rhf3 {[%clk 0:01:32]}  Rae8 {[%clk 0:02:20]} 20. Qd1 {[%clk 0:01:25]}  b4 {[%clk 0:02:19]} 21. Ba4 {[%clk 0:01:24]}  Bc6 {[%clk 0:02:15]} 22. Bxc6 {[%clk 0:01:24]}  Qxc6 {[%clk 0:02:16]} 23. Bf6 {[%clk 0:01:16]}  Nh2 {[%clk 0:02:13]} 24. Bxg7 {[%clk 0:01:12]}  Kxg7 {[%clk 0:02:11]} 25. Rf6 {[%clk 0:01:13]}  Qb7 {[%clk 0:02:10]} 26. R1f4 {[%clk 0:01:01]}  bxc3 {[%clk 0:02:10]} 27. bxc3 {[%clk 0:01:01]}  Rb8 {[%clk 0:02:08]} 28. Qc2 {[%clk 0:01:01]}  Ng4 {[%clk 0:02:06]} 29. Nf3 {[%clk 0:00:35]}  Ne3 {[%clk 0:01:58]} 30. Ng5 {[%clk 0:00:25]}  Nxc2 {[%clk 0:01:55]} 31. Rxf7+ {[%clk 0:00:25]}  Rxf7 {[%clk 0:01:55]} 32. Rxf7+ {[%clk 0:00:24]}  Qxf7 {[%clk 0:01:56]} 33. Nxf7 {[%clk 0:00:24]}  Kxf7 {[%clk 0:01:56]} 34. Kxc2 {[%clk 0:00:24]}  Ke6 {[%clk 0:01:57]} 0-1


[Site "https://www.chess.com"]

[Event "Titled Tuesday Blitz February 21 Late 2023"]
[White "Wang, Alexander J"]
[Black "Gasparyan, David"]
[WhiteFideId "30955270"]
[BlackFideId "13311980"]
[WhiteElo "1815"]
[BlackElo "2142"]
[Result "1/2-1/2"]
[Round "04"]
[TimeControl "180+2"]
[Date "2023.02.21"]
[WhiteClock "0:00:58"]
[BlackClock "0:00:24"]

1. e4 {[%clk 0:03:00]}  e5 {[%clk 0:03:00]} 2. Nf3 {[%clk 0:03:00]}  Nc6 {[%clk 0:03:00]} 3. Bb5 {[%clk 0:03:00]}  Nf6 {[%clk 0:03:01]} 4. O-O {[%clk 0:03:00]}  Nxe4 {[%clk 0:03:00]} 5. Re1 {[%clk 0:03:00]}  Nd6 {[%clk 0:02:58]} 6. Nxe5 {[%clk 0:03:00]}  Nxe5 {[%clk 0:02:58]} 7. Rxe5+ {[%clk 0:03:01]}  Be7 {[%clk 0:02:59]} 8. Bf1 {[%clk 0:03:01]}  O-O {[%clk 0:02:58]} 9. d4 {[%clk 0:03:01]}  b5 {[%clk 0:02:49]} 10. Re1 {[%clk 0:02:57]}  Nc4 {[%clk 0:02:47]} 11. Bxc4 {[%clk 0:02:53]}  bxc4 {[%clk 0:02:47]} 12. c3 {[%clk 0:02:53]}  d5 {[%clk 0:02:47]} 13. Bf4 {[%clk 0:02:52]}  Bf5 {[%clk 0:02:46]} 14. Nd2 {[%clk 0:02:51]}  Bg5 {[%clk 0:02:46]} 15. Qf3 {[%clk 0:02:47]}  Qf6 {[%clk 0:02:40]} 16. Qg3 {[%clk 0:02:37]}  Bh4 {[%clk 0:02:38]} 17. Qf3 {[%clk 0:02:37]}  c6 {[%clk 0:02:34]} 18. Be5 {[%clk 0:02:35]}  Qg6 {[%clk 0:02:33]} 19. g3 {[%clk 0:02:29]}  Bg5 {[%clk 0:02:32]} 20. Bf4 {[%clk 0:02:26]}  h5 {[%clk 0:02:24]} 21. Bxg5 {[%clk 0:02:22]}  Qxg5 {[%clk 0:02:25]} 22. Qe3 {[%clk 0:02:21]}  Qg6 {[%clk 0:02:22]} 23. Nf3 {[%clk 0:02:18]}  Rae8 {[%clk 0:02:10]} 24. Ne5 {[%clk 0:02:15]}  Qh7 {[%clk 0:02:04]} 25. Qf4 {[%clk 0:02:11]}  Re6 {[%clk 0:02:01]} 26. Nf3 {[%clk 0:02:10]}  f6 {[%clk 0:01:54]} 27. Nh4 {[%clk 0:02:07]}  Rfe8 {[%clk 0:01:30]} 28. Rxe6 {[%clk 0:02:02]}  Bxe6 {[%clk 0:01:31]} 29. Re1 {[%clk 0:01:58]}  Bd7 {[%clk 0:01:03]} 30. Rxe8+ {[%clk 0:01:52]}  Bxe8 {[%clk 0:01:04]} 31. Nf5 {[%clk 0:01:51]}  Bd7 {[%clk 0:00:58]} 32. Ne3 {[%clk 0:01:38]}  Qb1+ {[%clk 0:00:57]} 33. Kg2 {[%clk 0:01:38]}  Qxb2 {[%clk 0:00:55]} 34. Qd6 {[%clk 0:01:38]}  Qb7 {[%clk 0:00:40]} 35. h4 {[%clk 0:01:31]}  Qc8 {[%clk 0:00:37]} 36. Kh2 {[%clk 0:01:29]}  a6 {[%clk 0:00:31]} 37. Ng2 {[%clk 0:01:27]}  Qe8 {[%clk 0:00:28]} 38. Nf4 {[%clk 0:01:26]}  Bf5 {[%clk 0:00:24]} 39. Qc5 {[%clk 0:01:14]}  Qe1 {[%clk 0:00:24]} 40. Qxc6 {[%clk 0:01:00]}  Qxf2+ {[%clk 0:00:23]} 41. Ng2 {[%clk 0:01:00]}  Be4 {[%clk 0:00:23]} 42. Qe8+ {[%clk 0:01:00]}  Kh7 {[%clk 0:00:23]} 43. Qxh5+ {[%clk 0:01:00]}  Kg8 {[%clk 0:00:24]} 44. Qe8+ {[%clk 0:00:58]}  Kh7 {[%clk 0:00:24]} 45. Qh5+ {[%clk 0:00:58]}  Kg8 {[%clk 0:00:23]} 46. Qe8+ {[%clk 0:00:58]}  Kh7 {[%clk 0:00:24]} 47. Qh5+ {[%clk 0:00:58]} 1/2-1/2


[Site "https://www.chess.com"]

[Event "Titled Tuesday Blitz February 21 Late 2023"]
[White "Seletsky, Grigory"]
[Black "Adel, Sara"]
[WhiteFideId "14112191"]
[BlackFideId "10616764"]
[WhiteElo "2259"]
[BlackElo "1739"]
[Result "1-0"]
[Round "04"]
[TimeControl "180+2"]
[Date "2023.02.21"]
[WhiteClock "0:00:25"]
[BlackClock "0:00:06"]

1. e4 {[%clk 0:02:56]}  c6 {[%clk 0:02:59]} 2. d3 {[%clk 0:02:54]}  d5 {[%clk 0:03:00]} 3. Nd2 {[%clk 0:02:54]}  dxe4 {[%clk 0:02:59]} 4. dxe4 {[%clk 0:02:53]}  g6 {[%clk 0:02:58]} 5. Ngf3 {[%clk 0:02:52]}  Bg7 {[%clk 0:02:59]} 6. Be2 {[%clk 0:02:52]}  Nf6 {[%clk 0:02:59]} 7. O-O {[%clk 0:02:53]}  O-O {[%clk 0:02:59]} 8. c3 {[%clk 0:02:53]}  Bg4 {[%clk 0:02:59]} 9. Qc2 {[%clk 0:02:53]}  Nbd7 {[%clk 0:02:58]} 10. h3 {[%clk 0:02:54]}  Bxf3 {[%clk 0:02:58]} 11. Nxf3 {[%clk 0:02:54]}  Qc7 {[%clk 0:02:56]} 12. Be3 {[%clk 0:02:52]}  Rfd8 {[%clk 0:02:42]} 13. a4 {[%clk 0:02:51]}  a5 {[%clk 0:02:32]} 14. Rfd1 {[%clk 0:02:47]}  Ne5 {[%clk 0:02:27]} 15. Nd2 {[%clk 0:02:41]}  b6 {[%clk 0:02:20]} 16. f4 {[%clk 0:02:41]}  Ned7 {[%clk 0:02:19]} 17. Nc4 {[%clk 0:02:30]}  b5 {[%clk 0:02:17]} 18. Nd2 {[%clk 0:02:20]}  e5 {[%clk 0:02:05]} 19. Rf1 {[%clk 0:02:16]}  b4 {[%clk 0:02:01]} 20. Nc4 {[%clk 0:02:15]}  bxc3 {[%clk 0:01:55]} 21. bxc3 {[%clk 0:02:14]}  c5 {[%clk 0:01:13]} 22. f5 {[%clk 0:02:09]}  Nb6 {[%clk 0:00:54]} 23. Nxb6 {[%clk 0:01:59]}  Qxb6 {[%clk 0:00:54]} 24. g4 {[%clk 0:01:50]}  Qc6 {[%clk 0:00:50]} 25. Bf3 {[%clk 0:01:48]}  gxf5 {[%clk 0:00:34]} 26. gxf5 {[%clk 0:01:46]}  Kh8 {[%clk 0:00:32]} 27. Kh2 {[%clk 0:01:41]}  c4 {[%clk 0:00:24]} 28. Rg1 {[%clk 0:01:39]}  Rd3 {[%clk 0:00:24]} 29. Rae1 {[%clk 0:01:36]}  Rg8 {[%clk 0:00:20]} 30. Bh1 {[%clk 0:01:19]}  Nxe4 {[%clk 0:00:20]} 31. Qg2 {[%clk 0:01:18]}  Rxe3 {[%clk 0:00:14]} 32. Rxe3 {[%clk 0:01:17]}  Qh6 {[%clk 0:00:10]} 33. Rxe4 {[%clk 0:01:11]}  Rd8 {[%clk 0:00:11]} 34. Rg4 {[%clk 0:01:05]}  Rd2 {[%clk 0:00:10]} 35. Rxg7 {[%clk 0:01:05]}  Rxg2+ {[%clk 0:00:09]} 36. R1xg2 {[%clk 0:00:56]}  Qf4+ {[%clk 0:00:09]} 37. R2g3 {[%clk 0:00:54]}  h5 {[%clk 0:00:09]} 38. Kg1 {[%clk 0:00:34]}  Qc1+ {[%clk 0:00:08]} 39. Kg2 {[%clk 0:00:35]}  Qd2+ {[%clk 0:00:08]} 40. Kf1 {[%clk 0:00:34]}  Qc1+ {[%clk 0:00:08]} 41. Kf2 {[%clk 0:00:33]}  Qxh1 {[%clk 0:00:08]} 42. f6 {[%clk 0:00:26]}  Qh2+ {[%clk 0:00:08]} 43. Ke3 {[%clk 0:00:25]}  Qc2 {[%clk 0:00:05]} 44. Rg8+ {[%clk 0:00:25]}  Kh7 {[%clk 0:00:05]} 45. R3g7+ {[%clk 0:00:25]}  Kh6 {[%clk 0:00:05]} 46. Rh8+ {[%clk 0:00:25]}  Qh7 {[%clk 0:00:06]} 47. Rhxh7# {[%clk 0:00:25]} 1-0


[Site "https://www.chess.com"]

[Event "Titled Tuesday Blitz February 21 Late 2023"]
[White "Winkels, Marcel"]
[Black "Jovic, Stanoje"]
[WhiteFideId "1003887"]
[BlackFideId "905020"]
[WhiteElo "1960"]
[BlackElo "2075"]
[Result "1-0"]
[Round "04"]
[TimeControl "180+2"]
[Date "2023.02.21"]
[WhiteClock "0:00:13"]
[BlackClock "0:00:01"]

1. e4 {[%clk 0:03:00]}  c6 {[%clk 0:03:00]} 2. d4 {[%clk 0:02:57]}  d5 {[%clk 0:02:59]} 3. exd5 {[%clk 0:02:57]}  cxd5 {[%clk 0:02:59]} 4. c4 {[%clk 0:02:57]}  Nf6 {[%clk 0:02:58]} 5. Nc3 {[%clk 0:02:58]}  Nc6 {[%clk 0:02:58]} 6. Bg5 {[%clk 0:02:56]}  dxc4 {[%clk 0:02:58]} 7. d5 {[%clk 0:02:52]}  Ne5 {[%clk 0:02:57]} 8. Qd4 {[%clk 0:02:50]}  Nd3+ {[%clk 0:02:58]} 9. Bxd3 {[%clk 0:02:47]}  cxd3 {[%clk 0:02:58]} 10. Qxd3 {[%clk 0:02:34]}  g6 {[%clk 0:02:56]} 11. Nf3 {[%clk 0:02:31]}  Bg7 {[%clk 0:02:55]} 12. Rd1 {[%clk 0:02:20]}  O-O {[%clk 0:02:54]} 13. O-O {[%clk 0:02:19]}  a6 {[%clk 0:02:47]} 14. Rfe1 {[%clk 0:02:07]}  Bf5 {[%clk 0:02:45]} 15. Qd2 {[%clk 0:02:06]}  Bg4 {[%clk 0:02:40]} 16. Qf4 {[%clk 0:02:00]}  Bxf3 {[%clk 0:02:31]} 17. Qxf3 {[%clk 0:01:58]}  Rc8 {[%clk 0:02:30]} 18. d6 {[%clk 0:01:52]}  exd6 {[%clk 0:02:11]} 19. Nd5 {[%clk 0:01:48]}  Rc2 {[%clk 0:01:55]} 20. Bxf6 {[%clk 0:01:45]}  Bxf6 {[%clk 0:01:48]} 21. Nxf6+ {[%clk 0:01:39]}  Kg7 {[%clk 0:01:46]} 22. Qb3 {[%clk 0:01:37]}  Qc7 {[%clk 0:01:28]} 23. Ne4 {[%clk 0:01:34]}  Re8 {[%clk 0:01:15]} 24. Nc3 {[%clk 0:01:30]}  Rxe1+ {[%clk 0:00:57]} 25. Rxe1 {[%clk 0:01:29]}  Rd2 {[%clk 0:00:56]} 26. h3 {[%clk 0:01:13]}  f5 {[%clk 0:00:52]} 27. Na4 {[%clk 0:01:09]}  b5 {[%clk 0:00:47]} 28. Nc3 {[%clk 0:01:07]}  Qc5 {[%clk 0:00:44]} 29. Re2 {[%clk 0:01:01]}  Rd3 {[%clk 0:00:42]} 30. Qc2 {[%clk 0:00:50]}  Qd4 {[%clk 0:00:40]} 31. a3 {[%clk 0:00:43]}  h5 {[%clk 0:00:39]} 32. Kh2 {[%clk 0:00:36]}  h4 {[%clk 0:00:39]} 33. g3 {[%clk 0:00:31]}  hxg3+ {[%clk 0:00:37]} 34. fxg3 {[%clk 0:00:31]}  g5 {[%clk 0:00:27]} 35. Rg2 {[%clk 0:00:29]}  f4 {[%clk 0:00:20]} 36. Ne2 {[%clk 0:00:26]}  fxg3+ {[%clk 0:00:18]} 37. Nxg3 {[%clk 0:00:22]}  Kh8 {[%clk 0:00:10]} 38. Qf2 {[%clk 0:00:18]}  Qf4 {[%clk 0:00:09]} 39. Qxf4 {[%clk 0:00:17]}  gxf4 {[%clk 0:00:09]} 40. Nh5 {[%clk 0:00:18]}  f3 {[%clk 0:00:09]} 41. Rf2 {[%clk 0:00:18]}  a5 {[%clk 0:00:08]} 42. Kg3 {[%clk 0:00:18]}  b4 {[%clk 0:00:08]} 43. Rxf3 {[%clk 0:00:18]}  Rd2 {[%clk 0:00:07]} 44. Rf2 {[%clk 0:00:18]}  Rd3+ {[%clk 0:00:06]} 45. Kg4 {[%clk 0:00:19]}  bxa3 {[%clk 0:00:06]} 46. bxa3 {[%clk 0:00:18]}  Rxa3 {[%clk 0:00:06]} 47. Rd2 {[%clk 0:00:18]}  Rb3 {[%clk 0:00:05]} 48. Rxd6 {[%clk 0:00:17]}  Rb8 {[%clk 0:00:05]} 49. Kg5 {[%clk 0:00:16]}  Ra8 {[%clk 0:00:04]} 50. Kh6 {[%clk 0:00:16]}  a4 {[%clk 0:00:04]} 51. Rd7 {[%clk 0:00:15]}  Ra6+ {[%clk 0:00:02]} 52. Kg5 {[%clk 0:00:14]}  Ra5+ {[%clk 0:00:01]} 53. Kg6 {[%clk 0:00:13]} 1-0


[Site "https://www.chess.com"]

[Event "Titled Tuesday Blitz February 21 Late 2023"]
[White "Dzida, Kamil"]
[Black "Calcada, Lucas Galvan"]
[WhiteFideId "21828652"]
[BlackFideId "22746099"]
[WhiteElo "2352"]
[BlackElo "1739"]
[Result "1-0"]
[Round "04"]
[TimeControl "180+2"]
[Date "2023.02.21"]
[WhiteClock "0:00:41"]
[BlackClock "0:00:22"]

1. e4 {[%clk 0:03:00]}  c5 {[%clk 0:02:58]} 2. Nf3 {[%clk 0:03:00]}  d6 {[%clk 0:02:58]} 3. Nc3 {[%clk 0:02:58]}  Nc6 {[%clk 0:02:57]} 4. d4 {[%clk 0:02:57]}  Nxd4 {[%clk 0:02:58]} 5. Nxd4 {[%clk 0:02:58]}  cxd4 {[%clk 0:02:57]} 6. Qxd4 {[%clk 0:02:59]}  a6 {[%clk 0:02:57]} 7. Nd5 {[%clk 0:02:47]}  e6 {[%clk 0:02:51]} 8. Nb6 {[%clk 0:02:39]}  Rb8 {[%clk 0:02:51]} 9. Be3 {[%clk 0:02:36]}  Nf6 {[%clk 0:02:50]} 10. f3 {[%clk 0:02:30]}  Qc7 {[%clk 0:02:50]} 11. Bc4 {[%clk 0:02:25]}  Be7 {[%clk 0:02:49]} 12. O-O {[%clk 0:02:24]}  O-O {[%clk 0:02:49]} 13. Rfd1 {[%clk 0:02:20]}  Bd7 {[%clk 0:02:42]} 14. a4 {[%clk 0:02:14]}  Bc6 {[%clk 0:02:41]} 15. Bb3 {[%clk 0:02:12]}  Rbd8 {[%clk 0:02:38]} 16. Qc3 {[%clk 0:01:54]}  Nd7 {[%clk 0:02:32]} 17. a5 {[%clk 0:01:53]}  Bf6 {[%clk 0:02:27]} 18. Qb4 {[%clk 0:01:50]}  Be7 {[%clk 0:02:06]} 19. Qd2 {[%clk 0:01:44]}  Rfe8 {[%clk 0:02:01]} 20. Qf2 {[%clk 0:01:38]}  Bf8 {[%clk 0:01:57]} 21. Rd2 {[%clk 0:01:36]}  Nc5 {[%clk 0:01:54]} 22. Ba2 {[%clk 0:01:32]}  Nd7 {[%clk 0:01:30]} 23. Rad1 {[%clk 0:01:31]}  Nf6 {[%clk 0:01:27]} 24. c4 {[%clk 0:01:26]}  Qb8 {[%clk 0:01:20]} 25. b4 {[%clk 0:01:25]}  Nd7 {[%clk 0:01:14]} 26. Bb3 {[%clk 0:01:12]}  Nxb6 {[%clk 0:01:13]} 27. Bxb6 {[%clk 0:01:10]}  Rc8 {[%clk 0:01:10]} 28. Qg3 {[%clk 0:00:58]}  d5 {[%clk 0:00:54]} 29. Qxb8 {[%clk 0:00:57]}  Rxb8 {[%clk 0:00:54]} 30. exd5 {[%clk 0:00:54]}  exd5 {[%clk 0:00:53]} 31. cxd5 {[%clk 0:00:55]}  Bb5 {[%clk 0:00:53]} 32. d6 {[%clk 0:00:55]}  Bd7 {[%clk 0:00:49]} 33. Kf2 {[%clk 0:00:49]}  Rbc8 {[%clk 0:00:46]} 34. Bc7 {[%clk 0:00:49]}  g6 {[%clk 0:00:42]} 35. Bd5 {[%clk 0:00:46]}  Rxc7 {[%clk 0:00:30]} 36. dxc7 {[%clk 0:00:46]}  Bxb4 {[%clk 0:00:30]} 37. Bxb7 {[%clk 0:00:41]}  Bxd2 {[%clk 0:00:22]} 38. Rxd2 {[%clk 0:00:42]}  Bc8 {[%clk 0:00:22]} 39. Bxc8 {[%clk 0:00:41]}  Rxc8 {[%clk 0:00:22]} 40. Rd8+ {[%clk 0:00:41]} 1-0


[Site "https://www.chess.com"]